bitfinex-derivatives/quotes_SOLF0:USTF0_20260304
["timestamp","ask_amount","ask_price","bid_price","bid_amount"]
[1772634722642,3.89131694,91.325,91.221,3.60427122]
[1772634722948,3.89131694,91.36,91.28,9.859]
[1772634723244,124.0,91.39,91.23,20.79119323]
[1772634723245,3.89131694,91.349,91.23,20.79119323]
[1772634723449,153.141,91.417,91.23,20.79119323]
[1772634723450,3.89131694,91.378,91.27,3.60427122]
[1772634723840,3.89131694,91.378,91.244,153.429]
[1772634723841,3.89131694,91.378,91.273,3.60427122]
[1772634724045,3.89131694,91.378,91.29,9.858]
[1772634724244,124.0,91.41,91.244,3.60427122]
[1772634724245,3.89131694,91.369,91.244,3.60427122]
[1772634724441,3.89131694,91.369,91.207,3.60427122]
[1772634724647,153.154,91.409,91.252,9.862]
[1772634724648,3.89131694,91.359,91.252,9.862]
[1772634724849,3.89131694,91.359,91.248,3.60427122]
[1772634725046,3.89131694,91.399,91.272,3.60427122]
[1772634725241,3.89131694,91.399,91.26,20.79119323]
[1772634725242,3.89131694,91.399,91.288,3.60427122]
[1772634725443,3.89131694,91.389,91.288,3.60427122]
[1772634725642,3.89131694,91.383,91.288,3.60427122]
[1772634725839,3.89131694,91.429,91.303,3.60427122]
[1772634726040,3.89131694,91.429,91.302,153.331]
[1772634726041,3.89131694,91.429,91.322,3.60427122]
[1772634726246,3.89131694,91.439,91.305,3.60427122]
[1772634726445,3.89131694,91.439,91.31,3.60427122]
[1772634726651,3.89131694,91.439,91.334,153.278]
[1772634726849,3.89131694,91.439,91.32,20.79119323]
[1772634726850,3.89131694,91.468,91.34,153.268]
[1772634727044,3.89131694,91.468,91.354,153.244]
[1772634727247,3.89131694,91.468,91.322,153.297]
[1772634727546,3.89131694,91.496,91.426,9.843]
[1772634727746,0.00095446,91.485,91.419,153.136]
[1772634727940,0.00095446,91.485,91.45,153.084]
[1772634728144,3.89131694,91.677,91.546,9.83]
[1772634728355,3.89131694,91.649,91.5,20.79119323]
[1772634728546,3.89131694,91.649,91.544,9.83]
[1772634728748,3.89131694,91.649,91.51,20.79119323]
[1772634728946,3.89131694,91.649,91.502,0.22348634]
[1772634728947,5.79169456,91.649,91.502,0.22348634]
[1772634729154,3.89131694,91.648,91.523,0.22348634]
[1772634729342,3.89131694,91.648,91.489,153.017]
[1772634729343,4.14131608,91.619,91.493,0.22348634]
[1772634729548,4.14131608,91.559,91.4,20.79119323]
[1772634729745,4.14131608,91.529,91.419,9.844]
[1772634729950,4.14131608,91.573,91.406,153.157]
[1772634730148,4.14131608,91.549,91.447,153.089]
[1772634730344,4.14131608,91.599,91.46,153.067]
[1772634730546,4.14131608,91.599,91.456,153.074]
[1772634730853,4.14131608,91.599,91.428,153.12]
[1772634730854,4.14131608,91.599,91.472,153.046]
[1772634731042,4.14131608,91.599,91.445,153.092]
[1772634731242,4.14131608,91.599,91.47,20.79119323]
[1772634731644,4.14131608,91.599,91.487,9.837]
[1772634731848,4.14131608,91.599,91.44,20.79119323]
[1772634732050,4.47768991,91.569,91.44,20.79119323]
[1772634732244,4.47768991,91.569,91.466,153.056]
[1772634732543,4.47768991,91.569,91.447,153.089]
[1772634732751,1.90180043,91.592,91.496,9.836]
[1772634732946,4.47768991,91.569,91.407,153.155]
[1772634733152,4.47768991,91.539,91.4,20.79119323]
[1772634733446,4.47768991,91.539,91.412,9.845]
[1772634733652,4.47768991,91.539,91.367,153.222]
[1772634733951,4.46884339,91.518,91.386,153.191]
[1772634734154,4.46884339,91.518,91.407,153.155]
[1772634734348,4.46884339,91.518,91.4,20.79119323]
[1772634734548,4.46884339,91.518,91.355,153.242]
[1772634734755,4.46884339,91.518,91.33,153.285]
[1772634734756,4.46884339,91.499,91.359,153.235]
[1772634734956,4.46884339,91.499,91.375,9.849]
[1772634735360,4.46884339,91.499,91.35,30.81164392]
[1772634735553,152.953,91.529,91.331,153.282]
[1772634735554,4.304413,91.469,91.331,153.282]
[1772634735747,4.304413,91.469,91.36,30.81164392]
[1772634736257,4.304413,91.469,91.33,30.81164392]
[1772634736558,4.304413,91.469,91.273,153.379]
[1772634736559,4.304413,91.454,91.331,9.853]
[1772634736758,4.304413,91.454,91.3,30.81164392]
[1772634737056,9.843,91.426,91.309,9.856]
[1772634737254,153.053,91.469,91.27,30.81164392]
[1772634737255,4.304413,91.399,91.27,30.81164392]
[1772634737449,30.81164392,91.4,91.263,153.397]
[1772634737450,4.27265715,91.389,91.263,153.397]
[1772634737651,4.27265715,91.389,91.27,30.81164392]
[1772634737853,4.27265715,91.429,91.308,153.321]
[1772634738052,4.27265715,91.459,91.33,30.81164392]
[1772634738253,4.27265715,91.459,91.332,153.282]
[1772634738449,4.27265715,91.459,91.33,30.81164392]
[1772634738654,4.27268239,91.499,91.386,9.847]
[1772634738854,4.27268239,91.489,91.33,30.81164392]
[1772634739063,4.27268239,91.489,91.36,30.81164392]
[1772634739358,4.27268239,91.551,91.42,30.81164392]
[1772634739553,4.27268239,91.551,91.386,459.57]
[1772634739554,4.27268239,91.551,91.424,153.127]
[1772634739750,4.27268239,91.551,91.47,9.838]
[1772634739952,4.27268239,91.551,91.425,153.125]
[1772634740154,4.27268239,91.551,91.42,30.81164392]
[1772634740358,1.90220585,91.592,91.428,153.12]
[1772634740359,4.23362911,91.549,91.428,153.12]
[1772634740555,4.23362911,91.579,91.459,153.069]
[1772634740755,4.23362911,91.576,91.45,9.841]
[1772634740957,4.23362911,91.576,91.384,153.193]
[1772634740958,4.23362911,91.569,91.43,30.81164392]
[1772634741161,4.23362911,91.569,91.4,153.167]
[1772634741162,4.23362911,91.539,91.4,30.81164392]
[1772634741550,4.23362911,91.539,91.402,153.164]
[1772634741762,4.23362911,91.539,91.4,30.81164392]
[1772634742254,4.23362911,91.539,91.423,153.128]
[1772634742452,4.23362911,91.539,91.443,9.841]
[1772634742853,4.23362911,91.539,91.43,30.81164392]
[1772634743368,4.23362911,91.539,91.4,30.81164392]
[1772634743657,4.25809621,91.569,91.46,30.81164392]
[1772634744053,4.25809621,91.569,91.445,153.092]
[1772634744253,4.25809621,91.569,91.461,153.065]
[1772634744460,4.25809621,91.569,91.46,30.81164392]
[1772634744655,4.25809621,91.569,91.473,153.045]
[1772634744856,4.25809621,91.609,91.49,30.81164392]
[1772634745250,4.25809621,91.609,91.46,30.81164392]
[1772634745449,4.25809621,91.579,91.435,153.108]
[1772634745655,30.81164392,91.58,91.435,153.108]
[1772634745656,4.2687208,91.576,91.454,153.077]
[1772634745959,4.2687208,91.576,91.48,153.032]
[1772634746151,4.2687208,91.576,91.448,153.087]
[1772634746152,4.2687208,91.632,91.522,152.963]
[1772634746355,17.29,91.648,91.544,152.926]
[1772634746551,17.29,91.648,91.565,152.891]
[1772634746756,17.29,91.648,91.571,152.88]
[1772634746953,17.29,91.648,91.578,152.869]
[1772634746954,0.001,91.648,91.578,152.869]
[1772634747159,0.001,91.648,91.59,30.81164392]
[1772634747355,0.001,91.648,91.581,152.865]
[1772634747555,0.001,91.648,91.596,152.84]
[1772634747750,0.001,91.648,91.632,9.821]
[1772634747958,0.001,91.648,91.59,30.81164392]
[1772634748153,0.001,91.648,91.586,9.826]
[1772634748359,0.001,91.648,91.57,30.81164392]
[1772634748759,0.001,91.648,91.573,9.827]
[1772634748954,0.001,91.648,91.55,30.81164392]
[1772634749158,0.001,91.648,91.551,152.915]
[1772634749365,0.001,91.648,91.55,30.81164392]
[1772634749558,0.001,91.648,91.582,152.863]
[1772634749764,4.1457726,91.723,91.648,9.819]
[1772634750058,30.81164392,91.81,91.66,30.81164392]
[1772634750255,30.81164392,91.81,91.665,9.818]
[1772634750452,1.8983147,91.762,91.631,3.7779555]
[1772634750654,1.8983147,91.762,91.594,152.842]
[1772634750655,154.81164392,91.78,91.637,3.7779555]
[1772634750963,154.81164392,91.78,91.605,3.7779555]
[1772634750964,30.81164392,91.75,91.605,3.7779555]
[1772634751164,1.8983613,91.752,91.621,3.7779555]
[1772634751464,1.89842344,91.762,91.625,3.7779555]
[1772634751856,30.81164392,91.75,91.625,3.7779555]
[1772634752058,3.85961922,91.744,91.625,3.7779555]
[1772634752259,3.85961922,91.719,91.557,3.82831329]
[1772634752461,3.85961922,91.689,91.557,3.82831329]
[1772634752764,3.85961922,91.689,91.522,152.963]
[1772634752765,3.85961922,91.659,91.521,3.82831329]
[1772634753062,3.85961922,91.655,91.521,3.82831329]
[1772634753255,3.85961922,91.629,91.488,3.82831329]
[1772634753456,3.85961922,91.599,91.488,3.82831329]
[1772634753656,3.85961922,91.599,91.501,3.84221074]
[1772634754154,3.85961922,91.629,91.531,156.79021074]
[1772634754357,3.85961922,91.629,91.54,3.84221074]
[1772634754558,3.85961922,91.629,91.567,9.828]
[1772634754760,3.85961922,91.669,91.54,3.84221074]
[1772634755060,3.85961922,91.667,91.566,9.828]
[1772634755256,3.85961922,91.667,91.546,3.84221074]
[1772634755462,3.85961922,91.667,91.573,3.89125687]
[1772634755664,3.85961922,91.667,91.54,30.81164392]
[1772634755864,3.85961922,91.639,91.54,3.89125687]
[1772634756061,3.85961922,91.639,91.504,152.992]
[1772634756062,3.85961922,91.637,91.509,3.89125687]
[1772634756256,3.85961922,91.609,91.509,3.89125687]
[1772634756456,30.81164392,91.61,91.485,153.025]
[1772634756457,3.85961922,91.668,91.544,3.89125687]
[1772634757063,3.85961922,91.636,91.541,9.831]
[1772634757368,3.85961922,91.636,91.511,3.89125687]
[1772634757667,3.85961922,91.609,91.54,9.831]
[1772634757862,3.85961922,91.609,91.511,3.89125687]
[1772634758162,3.85961922,91.609,91.447,153.088]
[1772634758163,3.85961922,91.543,91.446,9.841]
[1772634758373,3.85961922,91.543,91.433,3.89125687]
[1772634758566,3.85961922,91.529,91.401,3.89125687]
[1772634758761,152.863,91.583,91.38,30.81164392]
[1772634758762,152.839,91.597,91.412,3.89125687]
[1772634758962,3.85961922,91.549,91.413,3.89125687]
[1772634759265,3.85961922,91.549,91.426,3.89125687]
[1772634759664,3.85961922,91.549,91.396,157.06425687]
[1772634759867,3.85961922,91.532,91.408,3.89125687]
[1772634760067,3.85961922,91.532,91.421,3.89125687]
[1772634760269,3.85961922,91.532,91.428,3.89125687]
[1772634760464,3.85961922,91.532,91.409,153.153]
[1772634760465,30.81164392,91.58,91.463,3.89125687]
[1772634760672,3.85961922,91.591,91.488,3.89125687]
[1772634760966,3.85961922,91.607,91.497,3.89125687]
[1772634761361,3.85961922,91.599,91.533,9.832]
[1772634761569,152.703,91.678,91.482,3.89125687]
[1772634761570,3.85961922,91.63,91.535,3.89125687]
[1772634761862,3.85961922,91.657,91.555,9.829]
[1772634762066,3.85961922,91.657,91.535,3.89125687]
[1772634762368,3.85961922,91.599,91.504,3.89125687]
[1772634762569,3.85961922,91.599,91.458,327.829]
[1772634762570,3.85961922,91.599,91.459,3.89125687]
[1772634762766,3.85961922,91.599,91.477,3.89125687]
[1772634762964,30.81164392,91.62,91.502,3.89125687]
[1772634763162,3.85961922,91.619,91.502,3.89125687]
[1772634763363,3.85961922,91.619,91.514,3.89125687]
[1772634764073,3.85961922,91.619,91.539,9.831]
[1772634764261,3.85961922,91.619,91.514,3.89125687]
[1772634764666,3.85961922,91.611,91.479,3.89125687]
[1772634765069,3.85961922,91.611,91.51,3.89125687]
[1772634765272,3.85961922,91.611,91.539,9.831]
[1772634765463,3.85961922,91.611,91.51,3.89125687]
[1772634765668,3.85961922,91.609,91.492,153.012]
[1772634765964,3.85961922,91.609,91.503,3.89125687]
[1772634766565,3.85961922,91.609,91.461,3.89125687]
[1772634766768,3.85961922,91.606,91.461,3.89125687]
[1772634767076,3.85961922,91.589,91.461,3.89125687]
[1772634767264,152.735,91.66,91.46,30.81164392]
[1772634767265,3.85961922,91.586,91.477,3.89125687]
[1772634767462,3.85961922,91.586,91.489,3.89125687]
[1772634767862,3.85961922,91.586,91.504,9.835]
[1772634768265,3.85961922,91.579,91.431,3.89125687]
[1772634768567,3.6531737,91.549,91.431,3.89125687]
[1772634768771,3.6531737,91.549,91.4,30.81164392]
[1772634768970,3.6531737,91.519,91.428,9.843]
[1772634769273,3.6531737,91.519,91.401,3.76016809]
[1772634769967,3.6531737,91.518,91.427,9.843]
[1772634770373,3.6531737,91.518,91.401,3.76016809]
[1772634770567,3.6531737,91.518,91.45,9.841]
[1772634770765,3.6531737,91.552,91.436,3.76016809]
[1772634770973,3.6531737,91.552,91.448,3.76016809]
[1772634771275,3.6531737,91.582,91.461,3.76016809]
[1772634772068,3.6531737,91.582,91.49,9.836]
[1772634772274,3.6531737,91.582,91.461,3.76016809]
[1772634772572,152.804,91.618,91.461,3.76016809]
[1772634772573,3.6531737,91.552,91.462,9.839]
[1772634772870,3.6531737,91.552,91.388,153.186]
[1772634772871,30.81164392,91.54,91.432,3.76016809]
[1772634773068,3.6531737,91.539,91.432,3.76016809]
[1772634773268,3.6531737,91.536,91.432,3.76016809]
[1772634773471,3.6531737,91.536,91.391,3.76016809]
[1772634773670,3.6531737,91.503,91.422,9.844]
[1772634773866,3.6531737,91.503,91.391,3.76016809]
[1772634774273,3.6531737,91.475,91.362,3.76016809]
[1772634774774,3.6531737,91.469,91.364,3.76016809]
[1772634774970,3.6531737,91.469,91.331,3.76016809]
[1772634775370,3.6531737,91.448,91.331,3.76016809]
[1772634776070,3.6531737,91.439,91.331,3.76016809]
[1772634776870,3.6531737,91.423,91.301,3.76016809]
[1772634777469,9.845,91.406,91.315,9.855]
[1772634777877,3.6531737,91.406,91.301,3.76016809]
[1772634778077,3.6531737,91.406,91.301,13.61716809]
[1772634778381,3.6531737,91.406,91.301,3.76016809]
[1772634778874,3.6531737,91.406,91.287,9.858]
[1772634779081,3.6531737,91.404,91.287,9.858]
[1772634779280,3.6531737,91.379,91.272,3.76016809]
[1772634779475,3.6531737,91.379,91.243,3.76016809]
[1772634780183,3.6531737,91.379,91.251,3.76016809]
[1772634780672,3.6531737,91.379,91.261,3.76016809]
[1772634782580,3.6531737,91.379,91.271,3.76016809]
[1772634783178,3.6531737,91.379,91.292,9.858]
[1772634783688,3.6531737,91.379,91.271,3.76016809]
[1772634784485,3.6531737,91.379,91.244,3.76016809]
[1772634784779,3.6531737,91.349,91.244,3.76016809]
[1772634785182,16.15,91.405,91.244,3.76016809]
[1772634785183,3.6531737,91.377,91.244,3.76016809]
[1772634785792,3.6531737,91.377,91.265,3.76016809]
[1772634786381,3.6531737,91.404,91.299,3.76016809]
[1772634786581,16.15,91.405,91.299,3.76016809]
[1772634786788,16.15,91.405,91.278,153.372]
[1772634786789,16.15,91.405,91.321,3.76016809]
[1772634787288,16.15,91.405,91.331,3.76016809]
[1772634787988,4.52883667,91.405,91.331,3.76016809]
[1772634788393,3.6531737,91.459,91.351,3.76016809]
[1772634788585,3.6531737,91.459,91.374,9.849]
[1772634788781,3.6531737,91.489,91.351,3.76016809]
[1772634788983,3.6531737,91.489,91.385,9.848]
[1772634789287,3.6531737,91.519,91.385,3.76016809]
[1772634789689,3.6531737,91.519,91.427,9.843]
[1772634789894,3.6531737,91.549,91.441,3.76016809]
[1772634790192,3.6531737,91.549,91.411,3.76016809]
[1772634790390,3.6531737,91.549,91.428,3.76016809]
[1772634790690,3.6531737,91.549,91.434,3.76016809]
[1772634790888,3.6531737,91.547,91.436,9.842]
[1772634791093,3.6531737,91.519,91.405,3.76016809]
[1772634791290,3.6531737,91.489,91.351,3.76016809]
[1772634791684,16.52,91.548,91.351,3.76016809]
[1772634791685,3.6531737,91.459,91.351,3.76016809]
[1772634792087,3.6531737,91.487,91.355,3.76016809]
[1772634792492,3.6531737,91.487,91.358,9.85]
[1772634792691,16.52,91.548,91.355,3.76016809]
[1772634792692,3.6531737,91.459,91.355,3.76016809]
[1772634793490,3.6531737,91.49,91.368,3.76016809]
[1772634794203,3.6531737,91.489,91.368,3.76016809]
[1772634794496,3.6531737,91.489,91.384,9.848]
[1772634794695,3.6531737,91.489,91.368,3.76016809]
[1772634796997,3.6531737,91.469,91.341,3.76016809]
[1772634797196,3.6531737,91.469,91.351,3.76016809]
[1772634797899,3.6531737,91.469,91.354,9.851]
[1772634798289,3.6531737,91.469,91.322,3.76016809]
[1772634798593,3.82980101,91.439,91.322,3.76016809]
[1772634799198,3.82980101,91.439,91.325,3.87734777]
[1772634799394,3.82980101,91.439,91.37,9.849]
[1772634799595,3.82980101,91.439,91.329,3.87734777]
[1772634799996,3.82980101,91.439,91.337,9.853]
[1772634800196,3.82980101,91.439,91.302,3.87734777]
[1772634800598,3.82980101,91.439,91.305,3.87734777]
[1772634800998,3.82980101,91.439,91.345,9.852]
[1772634801196,3.82980101,91.439,91.305,3.87734777]
[1772634801396,3.82980101,91.409,91.28,20.55784985]
[1772634801602,3.82980101,91.409,91.308,9.856]
[1772634801900,3.82980101,91.409,91.278,3.87734777]
[1772634801901,3.82980101,91.379,91.278,3.87734777]
[1772634802602,3.82980101,91.359,91.233,3.87734777]
[1772634802800,3.82980101,91.359,91.236,3.87734777]
[1772634803002,3.82980101,91.359,91.29,9.858]
[1772634803200,3.82980101,91.359,91.236,3.87734777]
[1772634803602,3.82980101,91.359,91.239,3.80746665]
[1772634804401,3.65086796,91.349,91.239,3.80746665]
[1772634804703,3.65086796,91.349,91.251,9.862]
[1772634805204,3.65086796,91.349,91.239,3.80746665]
[1772634805606,3.65086796,91.349,91.252,9.862]
[1772634805900,3.65086796,91.329,91.201,3.80746665]
[1772634806104,3.65086796,91.329,91.223,9.865]
[1772634806298,3.65086796,91.329,91.201,3.80746665]
[1772634806702,3.65086796,91.299,91.174,3.80746665]
[1772634807005,3.65086796,91.299,91.118,153.641]
[1772634807006,3.65086796,91.269,91.152,3.80746665]
[1772634807506,3.65086796,91.249,91.121,3.80746665]
[1772634808106,3.65086796,91.239,91.121,3.80746665]
[1772634808803,3.65086796,91.239,91.123,9.876]
[1772634808998,3.65086796,91.239,91.121,3.80746665]
[1772634809300,3.65086796,91.239,91.085,153.696]
[1772634809301,3.65086796,91.239,91.131,3.80746665]
[1772634809502,3.65086796,91.239,91.148,9.873]
[1772634809698,3.65086796,91.239,91.131,3.80746665]
[1772634810100,3.65086796,91.239,91.118,9.876]
[1772634810504,3.65086796,91.239,91.111,3.80746665]
[1772634811210,3.65086796,91.239,91.132,3.80746665]
[1772634811807,3.65086796,91.269,91.156,3.80746665]
[1772634812003,3.65086796,91.269,91.171,3.80746665]
[1772634812906,3.65086796,91.269,91.14,20.55784985]
[1772634812907,3.65086796,91.269,91.145,3.80746665]
[1772634813612,3.65086796,91.269,91.171,9.871]
[1772634814215,3.65086796,91.269,91.184,9.869]
[1772634814514,20.55784985,91.3,91.171,3.80746665]
[1772634814515,3.65086796,91.295,91.171,3.80746665]
[1772634815111,3.65086796,91.295,91.195,9.868]
[1772634815411,3.65086796,91.295,91.208,9.867]
[1772634815615,3.65086796,91.295,91.171,3.80746665]
[1772634815814,3.65086796,91.295,91.083,9.63253597]
[1772634815815,3.65086796,91.269,91.121,3.80746665]
[1772634816008,3.65086796,91.269,91.147,3.80746665]
[1772634816412,3.65086796,91.269,91.151,3.80746665]
[1772634816613,3.65086796,91.269,91.196,9.868]
[1772634817221,3.65086796,91.269,91.176,3.80746665]
[1772634817717,3.65086796,91.309,91.176,3.80746665]
[1772634818422,3.65086796,91.309,91.16,20.55784985]
[1772634818423,3.65086796,91.309,91.178,3.80746665]
[1772634819114,3.65086796,91.309,91.203,3.80746665]
[1772634819512,3.65086796,91.309,91.252,9.862]
[1772634819713,3.65086796,91.309,91.203,3.80746665]
[1772634819915,144.55784985,91.35,91.22,3.80746665]
[1772634819916,3.65086796,91.319,91.22,3.80746665]
[1772634821020,3.65086796,91.319,91.243,9.863]
[1772634821417,3.65086796,91.319,91.22,3.80746665]
[1772634821714,3.65086796,91.319,91.191,3.80746665]
[1772634821916,3.65086796,91.289,91.165,3.80746665]
[1772634822114,3.65086796,91.289,91.131,3.80746665]
[1772634822315,124.0,91.35,91.131,3.80746665]
[1772634822316,3.65086796,91.259,91.131,3.80746665]
[1772634822515,3.65086796,91.229,91.131,3.80746665]
[1772634823514,3.65086796,91.229,91.101,3.80746665]
[1772634823914,3.65086796,91.209,91.101,3.80746665]
[1772634824217,3.65086796,91.209,91.114,9.877]
[1772634824417,3.65086796,91.209,91.074,3.80746665]
[1772634825518,3.65086796,91.209,91.099,3.80746665]
[1772634826419,3.65086796,91.209,91.13,9.875]
[1772634826620,3.65086796,91.209,91.099,3.80746665]
[1772634827419,3.65086796,91.209,91.11,9.877]
[1772634827618,3.65086796,91.209,91.053,3.80746665]
[1772634828013,3.65086796,91.179,91.081,9.88]
[1772634828215,3.65086796,91.179,91.053,3.80746665]
[1772634829419,3.83591397,91.149,91.021,3.73193551]
[1772634829623,3.83591397,91.149,91.05,9.884]
[1772634829922,3.83591397,91.149,91.021,3.73193551]
[1772634830114,3.83591397,91.149,91.049,3.73193551]
[1772634830716,3.83591397,91.149,91.018,3.73193551]
[1772634830913,3.83591397,91.149,91.029,3.73193551]
[1772634831717,175.4,91.256,91.029,3.73193551]
[1772634831718,3.83591397,91.139,91.029,3.73193551]
[1772634832824,3.83591397,91.139,91.0,3.73193551]
[1772634833024,3.83591397,91.139,91.032,9.886]
[1772634833814,20.55784985,91.2,90.993,3.73193551]
[1772634833815,1.76348757,91.109,90.993,3.73193551]
[1772634834022,1.76348757,91.109,90.99,20.55784985]
[1772634834023,1.76348757,91.109,90.995,3.73193551]
[1772634834421,1.76348757,91.099,90.995,3.73193551]
[1772634834819,1.76348757,91.099,90.971,3.73193551]
[1772634835018,1.76348757,91.079,90.971,3.73193551]
[1772634835621,1.76348757,91.079,90.901,462.026]
[1772634835622,20.55784985,91.1,90.99,3.73193551]
[1772634835822,1.89657719,91.099,90.99,3.73193551]
[1772634836328,1.89657719,91.099,90.955,3.73193551]
[1772634836525,20.55784985,91.07,90.955,3.73193551]
[1772634836831,1.89657719,91.099,90.984,3.73193551]
[1772634837225,1.89657719,91.099,90.986,3.73193551]
[1772634837534,1.89657719,91.099,91.01,3.73193551]
[1772634837726,1.89657719,91.099,91.0,20.55784985]
[1772634837727,21.84,91.098,91.017,3.73193551]
[1772634838025,184.68511992,91.188,91.043,4.95020057]
[1772634838329,20.55784985,91.18,91.043,4.95020057]
[1772634838529,20.55784985,91.18,91.086,9.88]
[1772634838822,20.55784985,91.18,91.049,4.95020057]
[1772634839023,20.55784985,91.18,91.061,9.883]
[1772634839228,20.55784985,91.18,91.03,20.55784985]
[1772634839229,20.55784985,91.18,91.062,4.95020057]
[1772634839626,20.55784985,91.21,91.069,153.724]
[1772634839832,153.353,91.29,91.095,4.93845506]
[1772634840022,20.55784985,91.25,91.095,4.93845506]
[1772634840226,20.55784985,91.25,91.09,20.55784985]
[1772634840227,9.865,91.222,91.136,9.874]
[1772634840427,20.55784985,91.25,91.127,4.93845506]
[1772634840622,153.399,91.263,91.043,153.767]
[1772634840623,20.55784985,91.22,91.096,4.93845506]
[1772634840828,20.55784985,91.19,91.047,4.93845506]
[1772634841038,20.55784985,91.19,91.052,4.93845506]
[1772634841235,20.55784985,91.22,91.101,4.93845506]
[1772634841632,20.55784985,91.22,91.06,20.55784985]
[1772634841829,23.29,91.221,91.061,4.87910281]
[1772634842032,20.55784985,91.19,91.061,4.87910281]
[1772634842239,20.55784985,91.19,91.087,4.87910281]
[1772634842433,20.55784985,91.22,91.087,4.87910281]
[1772634842636,23.29,91.221,91.106,153.662]
[1772634842839,23.29,91.221,91.107,4.87910281]
[1772634843636,23.29,91.221,91.123,4.85528314]
[1772634843938,23.29,91.221,91.1,20.55784985]
[1772634843939,23.29,91.221,91.162,9.872]
[1772634844244,23.29,91.221,91.148,4.85528314]
[1772634844444,23.29,91.221,91.176,9.87]
[1772634844639,23.29,91.221,91.148,4.85528314]
[1772634844945,20.55784985,91.32,91.206,4.85528314]
[1772634845143,9.93899121,91.407,91.206,4.85528314]
[1772634845348,9.85,91.365,91.252,9.862]
[1772634845537,20.55784985,91.37,91.252,9.862]
[1772634845841,20.55784985,91.42,91.316,9.855]
[1772634846050,20.55784985,91.42,91.295,4.85098551]
[1772634846241,20.55784985,91.39,91.295,4.85098551]
[1772634846441,9.849,91.369,91.262,9.861]
[1772634846647,144.55784985,91.39,91.251,4.85098551]
[1772634847145,144.55784985,91.39,91.22,196.11784985]
[1772634847146,20.55784985,91.39,91.288,4.85098551]
[1772634847349,20.55784985,91.39,91.251,4.85098551]
[1772634847549,9.851,91.359,91.252,9.862]
[1772634848048,20.55784985,91.36,91.253,4.70395989]
[1772634848651,20.55784985,91.36,91.22,196.11784985]
[1772634848652,9.854,91.325,91.22,4.70395989]
[1772634849144,9.852,91.343,91.226,9.865]
[1772634849346,153.158,91.406,91.146,460.781]
[1772634849347,9.99620342,91.416,91.253,4.70395989]
[1772634849546,144.55784985,91.4,91.253,4.70395989]
[1772634849946,144.55784985,91.4,91.265,4.67847427]
[1772634850848,144.55784985,91.4,91.234,4.67847427]
[1772634850849,20.55784985,91.34,91.234,4.67847427]
[1772634851046,153.239,91.358,91.234,4.67847427]
[1772634851250,20.55784985,91.34,91.234,4.67847427]
[1772634851452,9.856,91.311,91.234,4.67847427]
[1772634851648,20.55784985,91.31,91.181,4.67830835]
[1772634852049,20.55784985,91.31,91.202,4.67830835]
[1772634852246,153.239,91.358,91.202,4.67830835]
[1772634852247,306.388,91.385,91.202,4.67830835]
[1772634852554,9.844,91.418,91.304,4.67830835]
[1772634852749,20.55784985,91.42,91.304,4.67830835]
[1772634852949,153.065,91.462,91.304,4.67830835]
[1772634852950,20.55784985,91.45,91.304,4.67830835]
[1772634853147,20.55784985,91.45,91.307,4.67830835]
[1772634853348,20.55784985,91.45,91.311,4.67830835]
[1772634853548,20.55784985,91.45,91.327,9.854]
[1772634853549,9.843,91.429,91.327,9.854]
[1772634853748,5.15787998,91.449,91.31,20.55784985]
[1772634854253,9.843,91.433,91.326,9.854]
[1772634854455,15.00087998,91.433,91.326,9.854]
[1772634854649,5.15787998,91.433,91.32,30.8568104]
[1772634855052,5.15787998,91.404,91.26,30.8568104]
[1772634855255,153.145,91.414,91.24,30.8568104]
[1772634855256,5.15787998,91.379,91.24,30.8568104]
[1772634855445,5.17575898,91.41,91.317,9.855]
[1772634855750,5.17575898,91.41,91.283,153.364]
[1772634855952,5.17575898,91.41,91.273,153.38]
[1772634855953,5.17575898,91.41,91.31,30.8568104]
[1772634856753,5.17575898,91.41,91.312,9.855]
[1772634857357,0.72,91.409,91.312,9.855]
[1772634857857,5.2051633,91.408,91.29,30.8568104]
[1772634858054,5.2051633,91.392,91.26,30.8568104]
[1772634858361,5.2051633,91.392,91.207,613.967]
[1772634858362,5.2051633,91.469,91.32,30.8568104]
[1772634858549,5.56531386,91.466,91.35,30.8568104]
[1772634858748,5.56531386,91.466,91.341,9.852]
[1772634858955,5.56531386,91.466,91.32,30.8568104]
[1772634859253,5.56531386,91.449,91.305,153.326]